bitfinex-derivatives/quotes_ETHF0:USTF0_20220106
["timestamp","ask_amount","ask_price","bid_price","bid_amount"]
[1641462915673,6.34783294,3314.3,3312.7,3.4013777]
[1641462915872,2.00479,3313.6,3312.8,2.00479]
[1641462916872,1.5,3313.5,3312.8,2.00479]
[1641462917075,1.5,3313.0,3311.5,3.4013777]
[1641462917273,1.5,3312.5,3311.5,3.4013777]
[1641462917472,4.830553,3312.9,3311.5,3.4013777]
[1641462917675,1.5,3312.8,3311.5,3.4013777]
[1641462917876,2.72224621,3313.9,3311.5,3.4013777]
[1641462918073,3.00892833,3313.4,3311.5,4.91030603]
[1641462918275,0.63968277,3312.9,3311.5,4.91030603]
[1641462918476,1.50947725,3312.2,3311.5,3.4013777]
[1641462918681,1.5,3311.9,3311.1,2.00479]
[1641462918876,4.831136,3312.1,3311.1,2.00479]
[1641462919077,1.50947725,3312.2,3311.1,2.00479]
[1641462919275,1.50927449,3312.6,3311.1,2.00479]
[1641462919676,1.50951827,3312.1,3311.1,2.00479]
[1641462919876,2.00479,3311.8,3311.1,2.00479]
[1641462920382,4.83172,3311.7,3311.1,2.00479]
[1641462920678,2.00479,3311.8,3311.1,2.137184]
[1641462920877,2.00479,3311.8,3311.1,2.00479]
[1641462921079,2.00479,3311.8,3309.9,3.4013777]
[1641462921278,2.00479,3311.8,3309.6,4.9013777]
[1641462921480,1.5,3311.4,3309.9,1.50965956]
[1641462921777,2.00479,3310.0,3309.6,3.4013777]
[1641462921979,4.832887,3311.3,3309.6,3.4013777]
[1641462922177,1.5,3311.4,3309.6,3.3993777]
[1641462922378,1.5,3310.7,3309.6,3.3993777]
[1641462922582,1.5,3309.9,3309.6,7.77e-05]
[1641462922779,1.5,3309.9,3309.5,0.4261606]
[1641462922983,1.5,3309.6,3309.5,0.4261606]
[1641462923279,21.02610884,3309.6,3309.2,4.20588137]
[1641462923480,1.5,3309.3,3309.2,4.20588137]
[1641462923679,1.51115839,3309.3,3309.2,3.80188137]
[1641462923880,10.35567039,3309.3,3309.2,2.79938137]
[1641462924079,10.35567039,3309.3,3309.2,2.42728137]
[1641462924279,11.85567039,3309.3,3309.2,2.42728137]
[1641462924480,11.85567039,3309.3,3308.9,4.6633713]
[1641462924481,8.844512,3309.3,3308.9,4.5309773]
[1641462924683,1.5,3309.0,3308.9,4.5309773]
[1641462924979,8.844512,3309.3,3308.4,0.01653139]
[1641462925179,1.5,3308.9,3308.4,0.01653139]
[1641462925480,1.5,3309.1,3308.4,0.01653139]
[1641462925682,11.49999999,3308.5,3308.4,0.01653139]
[1641462925980,11.02103075,3308.5,3308.4,0.01653139]
[1641462926184,21.02103074,3308.5,3308.4,0.01653139]
[1641462926381,21.02103074,3308.5,3308.4,3.139e-05]
[1641462926382,7.02103075,3308.5,3308.4,3.139e-05]
[1641462926582,26.74977775,3308.5,3308.4,3.139e-05]
[1641462926781,8.5397115,3308.5,3308.4,3.139e-05]
[1641462927182,12.5397115,3308.5,3308.4,3.139e-05]
[1641462927383,8.5397115,3308.5,3308.4,3.139e-05]
[1641462927582,7.028327,3308.5,3308.4,3.139e-05]
[1641462927782,22.52832699,3308.5,3308.4,3.139e-05]
[1641462927982,7.028327,3308.5,3308.4,3.139e-05]
[1641462928185,9.94616025,3308.5,3308.4,3.139e-05]
[1641462928383,11.4574808,3308.5,3306.4,1.51132055]
[1641462928583,4.0,3307.6,3306.1,2.00479]
[1641462928783,1.5,3308.0,3306.1,2.00479]
[1641462928984,4.838441,3307.5,3306.1,2.00479]
[1641462929183,1.51196036,3306.9,3306.1,2.00479]
[1641462929383,12.71,3307.8,3306.1,2.00479]
[1641462929684,4.0,3306.3,3305.2,4.94252139]
[1641462929883,2.00479,3305.7,3305.2,4.94252139]
[1641462930283,4.84049,3305.6,3305.2,4.94252139]
[1641462930485,4.84049,3305.6,3305.5,4.19584469]
[1641462930686,19.05049,3305.6,3305.5,2.58884469]
[1641462930899,19.05049,3305.6,3305.3,4.69770916]
[1641462931084,9.21,3305.4,3296.7,1.477]
[1641462931283,9.21,3305.4,3302.8,8.53635836]
[1641462931284,4.0,3303.4,3302.8,8.53635836]
[1641462931485,4.0,3302.9,3302.8,3.52490581]
[1641462931685,13.21,3302.9,3302.8,3.52490581]
[1641462931887,8.00958,3302.9,3302.8,1.91790581]
[1641462932087,8.00958,3302.9,3302.7,4.09393271]
[1641462932288,13.00957999,3302.9,3302.7,4.09393271]
[1641462932486,9.832116,3302.9,3302.7,1.75583007]
[1641462932885,9.832116,3302.9,3302.5,10.12793484]
[1641462933087,9.832116,3302.9,3302.5,10.08623484]
[1641462933285,5.832116,3302.9,3302.5,8.61162884]
[1641462933489,3.13,3302.8,3302.5,8.47923484]
[1641462933688,27.67062771,3302.6,3302.5,8.47923484]
[1641462934087,27.67062771,3302.6,3302.5,16.70922584]
[1641462934285,0.011316,3302.6,3302.5,15.20922584]
[1641462934485,31.6597,3306.7,3302.5,16.70922584]
[1641462934685,0.85311871,3305.8,3305.5,6.5]
[1641462934885,0.64099186,3305.6,3305.5,6.729991]
[1641462935086,0.04150301,3305.6,3305.5,6.632394]
[1641462935287,0.04150301,3305.6,3305.5,8.132394]
[1641462935485,4.0,3306.5,3305.5,8.132394]
[1641462935686,9.08376466,3307.7,3305.5,0.132394]
[1641462935885,2.00479,3305.6,3304.1,8.50479]
[1641462936087,2.00479,3305.6,3305.5,6.5]
[1641462936586,5.506831,3305.6,3304.1,2.00479]
[1641462936785,5.506831,3305.6,3304.7,6.5]
[1641462937186,5.506831,3305.6,3304.8,6.5]
[1641462937385,5.506831,3305.6,3305.5,6.5]
[1641462937685,3.502041,3305.6,3305.5,6.5]
[1641462938085,6.845134,3306.2,3304.8,6.5]
[1641462938387,4.258553,3305.6,3304.9,6.5]
[1641462938585,2.00479,3306.2,3304.6,6.5]
[1641462938787,2.00479,3306.2,3303.4,1.5]
[1641462938788,4.840783,3306.0,3304.7,6.5]
[1641462938985,4.840783,3305.5,3303.5,1.5]
[1641462939188,4.0,3305.6,3300.8,1.5]
[1641462939385,4.99999999,3304.2,3301.0,13.97823832]
[1641462939585,0.41,3305.5,3301.0,13.97823832]
[1641462939586,4.0,3302.6,3301.0,13.97823832]
[1641462939786,4.0,3302.6,3301.0,7.47823832]
[1641462939986,25.561212,3302.6,3301.0,7.47823832]
[1641462940188,8.851212,3302.6,3300.8,1.5]
[1641462940389,8.851212,3302.6,3302.4,6.5]
[1641462940586,8.851212,3302.6,3300.6,2.00479]
[1641462940587,8.851212,3302.6,3301.7,6.5]
[1641462940987,8.851212,3302.6,3299.9,1.5]
[1641462941289,1.5,3301.8,3299.9,28.27459054]
[1641462941487,4.0,3302.0,3297.9,0.4629]
[1641462941687,1.5,3301.6,3299.2,28.71210841]
[1641462941891,2.00479,3300.6,3299.5,2.00479]
[1641462942089,3.02778,3301.5,3300.5,1.51393119]
[1641462942288,3.02778,3301.5,3299.5,2.00479]
[1641462942488,1.5,3302.2,3299.2,2.44230787]
[1641462942688,1.5,3301.0,3299.2,2.44230787]
[1641462942890,1.962788,3301.4,3300.0,1.51426131]
[1641462943089,1.51449982,3301.4,3299.5,1.51449982]
[1641462943390,4.847456,3301.3,3299.2,2.44230787]
[1641462943795,4.848117,3301.4,3297.0,4.0]
[1641462943989,4.848117,3301.2,3298.6,1.22879]
[1641462944190,12.71,3301.1,3298.6,1.22879]
[1641462944389,1.5,3300.8,3298.6,1.22879]
[1641462944592,4.0,3300.2,3298.6,1.22879]
[1641462944890,4.848227,3300.1,3295.9,0.46290249]
[1641462945093,4.0,3299.3,3296.0,28.27459054]
[1641462945590,4.85194,3299.2,3296.0,28.27459054]
[1641462945790,4.0,3298.6,3298.3,1.5149151]
[1641462945993,4.00958,3298.4,3298.2,0.132394]
[1641462946191,2.941,3303.0,3298.3,1.51483937]
[1641462946192,16.71,3299.1,3298.3,1.51483937]
[1641462946495,16.71,3299.1,3298.2,1.64737795]
[1641462946496,4.0,3299.8,3298.5,1.51483707]
[1641462946692,4.0,3299.8,3296.7,2.00479]
[1641462946891,4.0,3300.8,3296.7,30.27938054]
[1641462947091,4.0,3301.3,3300.1,1.51410541]
[1641462947291,4.0,3302.4,3296.8,12.71]
[1641462947492,4.0,3302.4,3296.8,40.98459054]
[1641462947694,0.41,3302.7,3297.2,12.71]
[1641462947893,2.00479,3302.0,3300.9,2.00479]
[1641462948892,4.0,3304.3,3301.9,0.6]
[1641462949095,32.2843,3304.9,3301.9,0.6]
[1641462949294,1.5,3304.9,3301.9,0.6]
[1641462949494,4.843494,3304.8,3301.9,0.6]
[1641462949894,6.847991,3305.2,3304.4,2.00479]
[1641462950094,4.843567,3304.7,3304.5,0.132394]
[1641462950294,4.843567,3304.7,3304.6,0.229991]
[1641462950497,2.00479,3305.2,3304.6,0.229991]
[1641462950695,2.00479,3305.2,3304.7,0.132394]
[1641462951097,4.0,3308.1,3304.7,0.132394]
[1641462951397,0.49392126,3307.4,3304.4,1.66042821]
[1641462951606,0.49392126,3307.4,3304.4,29.93501875]
[1641462951896,2.00479,3306.3,3305.5,2.00479]
[1641462952096,1.137184,3306.3,3305.5,2.00479]
[1641462952297,4.839831,3306.2,3305.5,2.00479]
[1641462952497,1.5,3305.8,3305.5,2.00479]
[1641462952698,1.5,3305.6,3305.5,2.00479]
[1641462952896,1.5,3305.6,3305.2,2.00479]
[1641462952897,1.5,3305.6,3302.3,31.0399]
[1641462953097,1.5,3304.0,3302.3,28.27459054]
[1641462953297,1.5,3304.3,3302.3,28.27459054]
[1641462953597,1.5,3304.9,3302.3,28.27459054]
[1641462953800,1.5,3304.5,3302.3,28.27459054]
[1641462954003,1.5,3304.9,3303.9,2.00479]
[1641462954203,6.343494,3304.4,3303.9,2.00479]
[1641462954402,1.5,3304.4,3303.9,2.00479]
[1641462954600,1.5,3304.5,3300.4,4.0]
[1641462954801,4.842395,3304.3,3302.4,28.27459054]
[1641462955003,2.00479,3305.0,3302.5,12.71]
[1641462955204,1.42074376,3304.8,3302.5,28.27459054]
[1641462955802,1.42074376,3304.8,3302.9,4.0]
[1641462956002,1.42074376,3304.8,3304.7,2.00479]
[1641462956204,1.42074376,3304.8,3304.7,15.077175]
[1641462956403,3.01214193,3305.6,3304.7,16.58883367]
[1641462956607,3.55185939,3305.8,3304.7,15.077175]
[1641462957104,4.79501018,3307.1,3304.7,15.077175]
[1641462957105,3.01291624,3306.6,3304.7,15.700775]
[1641462957303,3.01291624,3306.6,3304.7,15.077175]
[1641462957706,2.11291624,3306.6,3305.2,12.71]
[1641462957905,1.60391624,3306.6,3306.5,4.00958]
[1641462958105,1.0,3306.9,3306.5,5.88280604]
[1641462958304,1.0,3306.9,3306.5,4.371965]
[1641462958506,3.77018588,3307.2,3306.5,17.081965]
[1641462958714,3.77018588,3307.2,3306.5,4.371965]
[1641462958906,3.77018588,3307.2,3307.1,1.5105763]
[1641462959105,3.77018588,3307.2,3307.1,0.362385]
[1641462959705,4.26223127,3307.9,3307.1,14.58281071]
[1641462959906,0.29248117,3307.9,3307.8,18.22966358]
[1641462960111,2.00479,3310.1,3307.8,18.22966358]
[1641462960112,3.5737475,3309.5,3307.8,18.45908927]
[1641462960408,0.33954751,3309.5,3307.8,5.74908927]
[1641462960607,0.33954751,3309.5,3307.8,4.239571]
[1641462961107,0.33954751,3309.5,3306.9,4.34634573]
[1641462961708,1.5,3309.6,3306.9,4.34634573]
[1641462961906,2.00479,3309.2,3308.4,2.00479]
[1641462962108,0.50958,3309.0,3308.4,3.51484166]
[1641462962307,0.132394,3309.0,3308.4,2.00479]
[1641462962506,0.50958,3309.7,3308.7,2.05007481]
[1641462962706,16.71,3311.5,3308.7,2.05007481]
[1641462962907,0.50958,3308.9,3308.7,2.05007481]
[1641462963109,1.87329681,3308.8,3308.7,2.05007481]
[1641462963407,1.862385,3308.8,3307.2,1.0]
[1641462963607,5.198048,3308.8,3308.6,1.3661815]
[1641462963807,0.50958,3308.7,3308.1,2.04927225]
[1641462964009,4.51916,3308.2,3308.1,2.04927225]
[1641462964208,4.749151,3308.2,3308.1,2.04927225]
[1641462964610,0.739571,3308.2,3308.1,2.04927225]
[1641462965010,0.79406782,3308.2,3308.1,2.04927225]
[1641462965409,0.79406782,3308.2,3307.2,1.0]
[1641462965609,2.26877675,3309.3,3307.3,4.0]
[1641462965809,2.26877675,3309.3,3308.6,1.50998553]
[1641462966009,2.26877675,3309.3,3309.2,2.00479]
[1641462966608,2.26877675,3309.3,3309.2,3.51445411]
[1641462967010,3.02503567,3309.6,3309.2,2.00479]
[1641462967315,1.51511648,3310.0,3309.2,14.71479]
[1641462967515,1.51511648,3310.0,3309.5,1.50920844]
[1641462967710,0.81071173,3310.0,3309.5,1.50920844]
[1641462967912,0.81071173,3310.0,3309.9,4.00958]
[1641462968110,0.81071173,3310.0,3309.9,16.71958]
[1641462968310,3.02503567,3310.8,3309.9,17.71]
[1641462968513,3.02503567,3310.8,3310.7,16.71]
[1641462968711,3.02503567,3310.8,3310.7,14.21816596]
[1641462968911,1.50816596,3314.5,3310.7,14.21816596]
[1641462969110,29.52337005,3313.9,3311.3,12.71]
[1641462969310,29.52337005,3313.9,3311.8,12.71]
[1641462969711,0.50958,3312.4,3311.2,14.21795901]
[1641462969914,1.5,3313.4,3312.3,4.00958]
[1641462970214,0.50958,3313.3,3312.3,4.00958]
[1641462970617,0.50958,3313.3,3312.3,5.51789155]
[1641462970813,0.50958,3313.9,3312.4,12.71]
[1641462971014,0.50958,3314.8,3313.0,1.50797493]
[1641462971214,0.50958,3313.9,3312.3,4.00958]
[1641462971415,30.41911744,3315.9,3313.2,1.5]
[1641462971615,1.50772028,3315.5,3313.6,1.50772028]
[1641462971814,30.41911744,3315.9,3314.3,1.5]
[1641462972016,30.41911744,3315.9,3315.3,2.00479]
[1641462972216,0.132394,3315.8,3315.3,2.00479]
[1641462973416,0.132394,3315.8,3314.3,1.50738846]
[1641462973417,9.99999999,3315.4,3312.8,0.4]
[1641462973615,11.5083707,3314.3,3312.8,0.4]
[1641462973818,9.99999999,3314.3,3312.8,0.4]
[1641462974019,2.00479,3313.6,3312.8,2.40479]
[1641462974216,1.5082615,3314.3,3312.8,2.40479]
[1641462974616,9.99999999,3314.2,3312.8,2.40479]
[1641462974817,1.50865971,3313.4,3312.8,0.4]
[1641462975020,0.132394,3313.3,3310.7,12.71]
[1641462975218,0.132394,3313.3,3311.5,1.5]
[1641462975419,9.99999999,3314.4,3313.6,3.867606]
[1641462975620,1.5086893,3313.7,3313.6,3.867606]
[1641462975818,9.99999999,3315.4,3313.6,3.867606]
[1641462976018,0.8876858,3318.0,3313.6,3.867606]
[1641462976019,1.50841621,3313.9,3313.6,3.867606]
[1641462976619,0.36231,3313.8,3313.6,3.867606]
[1641462976821,2.00479,3314.3,3313.6,3.867606]
[1641462977219,0.132319,3314.2,3313.6,3.867606]
[1641462977418,1.50812275,3314.6,3313.7,0.132394]
[1641462977621,1.50812275,3314.6,3313.7,1.632394]
[1641462977819,1.50773165,3315.4,3313.7,0.132394]
[1641462978018,2.00479,3314.4,3313.7,0.132394]
[1641462978218,0.132319,3314.3,3313.7,0.132394]
[1641462978420,0.132319,3314.3,3313.6,5.872396]
[1641462978618,1.50839346,3314.0,3313.6,3.867606]
[1641462978821,0.132319,3313.9,3311.6,1.5]
[1641462979020,9.99999999,3313.7,3310.6,1.5]
[1641462979221,4.0,3314.5,3310.7,1.50901713]
[1641462979222,1.50901713,3312.6,3310.7,1.50901713]
[1641462979620,1.50935422,3311.9,3310.0,1.50935422]
[1641462979822,1.50955473,3311.4,3309.7,0.99246198]
[1641462980022,9.99999999,3310.8,3308.9,1.5097097]
[1641462980223,0.002,3308.9,3307.9,4.00260486]
[1641462980423,0.002,3308.9,3307.9,0.99246198]
[1641462980623,0.002,3308.9,3307.6,1.32319236]
[1641462980824,0.002,3308.9,3307.9,1.51030709]
[1641462981025,1.51051241,3309.6,3307.7,1.5]
[1641462981233,6.5125124,3310.0,3307.6,6.31067995]
[1641462981430,4.0,3311.1,3307.6,1.32319236]
[1641462981632,4.835589,3309.9,3307.1,1.98446093]
[1641462981833,4.835589,3309.9,3306.5,9.98748759]
[1641462981834,1.5125124,3309.6,3306.5,9.98748759]
[1641462982034,2.00479,3308.6,3306.1,9.98748759]
[1641462982231,1.5125124,3308.2,3305.3,1.32319236]
[1641462982631,1.51147588,3307.5,3305.6,1.51147588]
[1641462983032,1.817987,3307.4,3305.9,1.5]
[1641462983231,1.817987,3307.4,3304.8,9.98748759]
[1641462983431,1.51159012,3307.2,3305.3,1.51159012]
[1641462983632,1.51187121,3306.6,3304.7,1.51187121]
[1641462983831,0.60611,3307.1,3303.7,1.5]
[1641462984032,2.00479,3306.4,3305.8,8.48748759]
[1641462984231,2.00479,3306.4,3305.9,0.132394]
[1641462984431,2.00479,3306.7,3306.1,9.98748759]
[1641462984630,2.00479,3306.7,3305.6,2.00479]
[1641462984631,2.941,3312.4,3306.6,9.98748759]
[1641462984833,1.51085702,3308.8,3307.3,9.98748759]
[1641462985031,32.84360678,3309.2,3307.3,9.98748759]
[1641462985435,32.84360678,3309.2,3307.6,1.51055805]
[1641462985632,32.84360678,3309.2,3308.2,9.98748759]
[1641462985833,32.84360678,3309.2,3308.5,9.98748759]
[1641462986036,1.43229622,3309.1,3309.0,9.98748759]
[1641462986232,1.43229622,3309.1,3308.7,11.99227759]
[1641462986433,1.43229622,3309.1,3309.0,9.98748759]
[1641462986635,2.00479,3309.5,3308.8,9.98748759]
[1641462986834,2.00479,3309.5,3308.8,1.51002658]
[1641462987034,2.00479,3309.5,3308.9,0.132394]
[1641462987234,1.51002658,3310.6,3308.9,0.132394]
[1641462987435,1.50978264,3311.2,3309.3,1.50978264]
[1641462987634,1.50978264,3311.2,3309.3,14.21978264]
[1641462987834,0.57128,3311.1,3309.3,14.21978264]
[1641462988036,3.51493059,3310.4,3309.7,2.00479]
[1641462988235,0.132319,3310.3,3308.7,2.00479]
[1641462988635,0.132319,3310.3,3307.0,0.6236]
[1641462988636,1.5125124,3308.8,3307.0,0.6236]
[1641462988836,4.0,3308.6,3306.7,1.36981386]
[1641462989035,4.0,3308.0,3306.7,1.36981386]
[1641462989236,1.5125124,3307.1,3306.7,1.36981386]
[1641462989435,0.132319,3307.0,3306.7,1.36981386]
[1641462989636,0.229991,3306.9,3305.6,2.06432104]
[1641462989835,1.5118415,3306.2,3305.6,2.06432104]
[1641462990035,5.52155408,3306.1,3305.8,0.132394]
[1641462990236,5.52155408,3306.1,3305.6,2.06432104]
[1641462990237,4.00958,3306.1,3305.6,2.06432104]
[1641462990435,4.17188994,3306.1,3305.6,2.06432104]
[1641462990636,5.68399434,3306.1,3305.6,2.06432104]
[1641462990836,8.96789434,3306.1,3305.6,2.19671504]
[1641462991035,4.0,3308.7,3305.6,2.19671504]
[1641462991036,3.64621,3308.1,3306.0,4.98748759]
[1641462991236,3.64621,3308.1,3306.0,28.27459054]
[1641462991436,3.64621,3308.1,3307.0,0.1]
[1641462991637,3.64621,3308.1,3307.0,28.37459054]
[1641462992038,2.00479,3307.2,3307.0,28.37459054]
[1641462992237,2.00479,3307.2,3307.0,28.50698454]
[1641462992639,2.00479,3307.5,3307.0,28.33993005]
[1641462992839,2.00479,3307.5,3307.4,0.09348759]
[1641462993036,2.00479,3307.5,3307.4,0.22588159]
[1641462993240,2.00479,3307.5,3307.4,0.132394]
[1641462993640,1.82403795,3306.8,3306.4,2.00479]
[1641462993837,1.82403795,3306.8,3306.5,12.71]
[1641462994038,1.82403795,3306.8,3306.7,2.00479]
[1641462994240,3.64621,3308.1,3306.7,2.00479]
[1641462994540,3.64621,3308.1,3306.8,12.71]
[1641462994940,3.58651,3308.1,3306.7,3.50479]
[1641462995239,3.58651,3308.1,3306.9,1.5]
[1641462995440,0.6236,3310.7,3307.6,12.71]
[1641462995640,1.5,3310.7,3306.7,2.00479]
[1641462995843,1.5,3310.7,3307.0,4.0]
[1641462996040,2.00479,3309.1,3308.4,2.00479]
[1641462996243,3.51511534,3309.5,3308.4,2.00479]
[1641462996441,2.00479,3309.5,3308.4,2.00479]
[1641462997150,0.75617449,3309.4,3308.4,2.00479]
[1641462997342,0.75617449,3309.4,3306.7,1.51073605]
[1641462997543,1.5,3309.2,3306.0,2.53414799]
[1641462997743,4.836686,3309.3,3306.0,2.53414799]
[1641462997943,1.51102596,3307.9,3306.1,1.51102596]
[1641462998143,2.00479,3308.0,3307.1,2.00479]
[1641462998747,2.00479,3308.0,3307.1,30.21232605]
[1641462998945,2.00479,3308.0,3307.2,12.71]
[1641462999145,2.00479,3308.0,3307.2,40.91753605]
[1641463000044,2.00479,3308.0,3307.6,12.71]
[1641463000244,1.5065149,3307.9,3307.6,40.91753605]
[1641463000646,1.51120635,3307.7,3306.6,12.71]
[1641463000844,1.5065149,3307.9,3306.6,12.71]
[1641463001048,1.6125149,3307.9,3306.6,12.71]
[1641463001845,1.51108761,3307.8,3306.6,12.71]
[1641463002144,3.12355684,3307.9,3307.1,12.71]
[1641463002547,0.106,3307.9,3307.1,12.71]
[1641463002945,31.374,3310.4,3307.8,14.21]
[1641463003144,1.41537283,3308.9,3307.8,14.21]
[1641463003345,0.71641051,3309.0,3307.8,12.71]
[1641463003547,0.71641051,3309.0,3308.3,12.71]
[1641463003747,0.71641051,3309.0,3308.7,12.71]
[1641463003945,1.51097427,3309.5,3308.7,12.71]
[1641463004145,3.21356942,3310.0,3309.2,12.71]
[1641463004345,0.132394,3309.9,3309.1,2.00479]
[1641463004546,1.51021357,3309.7,3309.1,2.00479]
[1641463004746,0.132394,3309.6,3307.8,1.51021129]
[1641463004946,1.51046678,3309.2,3307.3,1.51046678]
[1641463005146,1.51046678,3309.5,3306.9,1.51065845]
[1641463005147,1.51065845,3308.8,3306.9,1.51065845]
[1641463005348,1.22625273,3309.5,3306.0,1.5]
[1641463005546,1.51088441,3308.3,3306.5,12.71]
[1641463006148,2.00479,3307.1,3306.3,2.00479]
[1641463006546,2.00479,3307.1,3306.4,12.71]
[1641463007246,1.19461403,3307.0,3306.2,2.53414799]
[1641463007448,1.5116084,3306.7,3304.8,1.5116084]
[1641463007646,1.06222003,3307.0,3304.5,12.71]
[1641463008249,2.00479,3305.3,3304.5,14.71479]
[1641463008657,2.00479,3305.6,3304.7,12.71]
[1641463008847,1.51153071,3306.8,3305.0,14.22153071]
[1641463009048,1.51158783,3306.7,3305.0,12.71]
[1641463009248,1.51158783,3306.7,3304.8,1.51158783]
[1641463009249,1.51158783,3306.7,3305.2,12.71]
[1641463010049,1.20877942,3308.2,3305.2,12.71]
[1641463010249,2.00479,3306.6,3305.8,12.71]
[1641463010451,2.00479,3306.6,3306.0,12.71]
[1641463010750,1.51110587,3307.8,3306.0,12.71]
[1641463011151,1.51110587,3307.8,3306.2,12.71]
[1641463011152,2.41419931,3307.8,3306.2,12.71]
[1641463011750,0.90309344,3307.8,3306.2,12.71]
[1641463011952,0.90309344,3307.8,3306.2,9.22098029]
[1641463012153,2.90788344,3307.8,3307.0,2.00479]
[1641463012355,0.132394,3307.7,3307.0,2.00479]
[1641463012752,0.132394,3307.7,3307.0,9.71479]
[1641463013353,2.90788344,3307.8,3307.0,9.71479]
[1641463013552,0.90309344,3307.8,3307.0,9.71479]
[1641463013951,2.00479,3308.2,3307.0,9.71479]
[1641463014153,1.51073833,3308.6,3307.9,2.00479]
[1641463014352,1.51073833,3308.6,3308.0,7.71]
[1641463014552,2.00479,3308.7,3308.0,7.71]
[1641463015254,2.137184,3308.7,3308.0,7.71]
[1641463015454,2.00479,3308.7,3308.0,7.71]
[1641463015855,2.00479,3309.0,3308.0,7.71]
[1641463016054,2.00279,3309.0,3308.0,7.71]
[1641463016357,2.00279,3309.0,3308.5,7.71]
[1641463016554,2.135184,3309.0,3308.4,2.00479]
[1641463016756,1.07957798,3308.9,3308.4,2.00479]
[1641463016956,1.51061737,3308.8,3307.8,1.0]
[1641463017756,1.51061737,3308.8,3307.8,13.71]
[1641463018156,1.51061737,3308.8,3308.1,12.71]
[1641463018558,1.07957798,3308.9,3308.1,12.71]
[1641463018958,1.38904485,3309.5,3308.1,14.22008358]
[1641463019158,1.38904485,3309.5,3308.0,2.00479]
[1641463019159,1.20877942,3309.7,3308.6,12.71]
[1641463019357,41.05664616,3310.4,3308.6,12.71]
[1641463019358,1.20877942,3309.9,3308.6,12.71]
[1641463019959,1.20877942,3309.9,3309.4,12.71]
[1641463020158,1.20877942,3309.9,3309.8,2.00479]
[1641463020358,1.20877942,3309.9,3309.8,14.71479]
[1641463020760,2.00479,3310.8,3309.8,14.71479]
[1641463020961,1.21546817,3310.8,3310.1,12.71]
[1641463021159,2.2664804,3311.5,3310.4,12.71]
[1641463021361,0.2894012,3311.8,3310.6,12.71]
[1641463021759,0.2894012,3311.8,3310.8,12.71]
[1641463021959,0.2894012,3311.8,3310.8,14.21]
[1641463022160,0.2894012,3311.8,3311.7,2.00479]
[1641463022360,2.00479,3312.5,3311.7,14.71479]
[1641463022559,3.78129459,3313.5,3312.2,1.50814094]
[1641463022759,3.78129459,3313.5,3312.3,4.0]
[1641463022960,3.78129459,3313.5,3312.4,12.71]
[1641463023164,3.78129459,3313.5,3312.8,1.50797493]
[1641463023361,0.132394,3313.4,3312.4,1.50812275]
[1641463023560,0.132394,3313.4,3311.7,2.00479]
[1641463024163,2.00479,3313.1,3312.3,2.00479]
[1641463024362,0.132394,3313.0,3312.3,2.00479]
[1641463024562,3.78129459,3313.5,3312.3,2.00479]
[1641463024963,0.91519042,3313.4,3312.3,16.22298553]
[1641463025164,0.91519042,3313.4,3312.3,3.51298553]
[1641463025364,0.91519042,3313.4,3312.5,1.0]
[1641463025564,0.91519042,3313.4,3312.5,2.5]
[1641463025764,0.91519042,3313.4,3313.0,1.50784759]
[1641463025964,9.042e-05,3313.4,3313.0,1.50784759]
[1641463026163,9.042e-05,3313.4,3312.5,1.0]
[1641463026364,9.042e-05,3313.4,3313.1,2.00479]
[1641463026766,0.132394,3313.5,3313.1,2.00479]
[1641463027264,2.00479,3313.9,3313.1,2.00479]
[1641463027665,2.00479,3314.3,3313.1,2.00479]
[1641463028265,2.00479,3313.9,3313.1,2.00479]
[1641463028467,2.00479,3314.3,3313.1,2.00479]
[1641463028867,1.5,3315.5,3313.1,2.00479]
[1641463029067,4.16657032,3316.3,3313.1,2.00479]
[1641463029369,1.5,3315.7,3313.1,2.00479]
[1641463029569,1.5,3315.7,3313.2,0.5677819]
[1641463029971,1.30621467,3315.5,3313.6,12.71]
[1641463030269,2.29858686,3315.9,3315.2,2.00479]
[1641463030680,2.17429459,3316.3,3315.3,1.5]
[1641463030871,2.17429459,3316.3,3315.6,12.71]
[1641463031075,2.17429459,3316.3,3316.2,1.5]
[1641463031372,4.16657032,3316.6,3316.2,12.71]
[1641463031569,4.16657032,3316.6,3316.5,4.0]
[1641463031775,7.032e-05,3316.6,3316.5,16.71]
[1641463031975,5.20004522,3316.7,3316.5,11.71]
[1641463032371,4.54166983,3317.1,3316.7,11.71]
[1641463032574,2.93466983,3317.1,3317.0,5.5]
[1641463032784,4.05358001,3317.6,3317.0,17.21]
[1641463032977,4.05358001,3317.6,3317.5,17.21]
[1641463033174,4.23545775,3318.9,3317.5,17.21]
[1641463033375,4.23545775,3318.9,3318.0,4.0]
[1641463033576,4.14545775,3318.9,3318.1,11.71]
[1641463033775,0.132394,3318.8,3318.1,11.71]
[1641463033975,4.14545775,3318.9,3318.1,11.71]
[1641463034177,0.132394,3318.8,3317.2,4.0]
[1641463034376,0.132394,3318.8,3317.3,12.71]
[1641463034578,0.132394,3318.8,3316.5,0.6236]
[1641463034777,1.5,3318.6,3318.0,5.12318062]
[1641463035075,1.5,3318.4,3317.0,6.0832683]
[1641463035277,1.5,3318.6,3317.0,6.0832683]
[1641463035477,9.99999999,3319.4,3318.8,4.0]
[1641463035676,0.5,3318.9,3318.8,2.22]
[1641463035877,0.229991,3318.9,3317.5,1.35577331]
[1641463036279,2.00479,3318.2,3317.5,3.36056331]
[1641463036480,2.00479,3318.6,3317.6,12.842394]
[1641463036679,0.5,3320.6,3318.4,1.0]
[1641463036879,0.5,3320.6,3317.8,4.0]
[1641463037181,0.5,3320.6,3318.4,1.0]
[1641463037379,0.5,3320.6,3318.5,12.71]
[1641463037580,0.5,3320.2,3318.4,1.0]